lending/lending_fUSD_20251124
["ID","MTS","AMOUNT","RATE_DAILY","PERIOD"]
[394798091,1763961045570,-500.0,0.00038356,8]
[394798092,1763961045584,-194.81400507,0.00038356,8]
[394798093,1763961045594,-500.0,0.00038356,8]
[394798094,1763961045603,-151.0,0.00038356,31]
[394798095,1763961045614,-151.0,0.00038356,31]
[394798096,1763961045623,-151.0,0.00038356,31]
[394798097,1763961045633,-151.0,0.00038356,31]
[394798098,1763961045643,-151.0,0.00038356,31]
[394798099,1763961045653,-151.0,0.00038356,31]
[394798100,1763961045663,-500.0,0.00038356,8]
[394798101,1763961045672,-151.0,0.00038356,31]
[394798102,1763961045682,-154.47390351,0.00038356,8]
[394798103,1763961045691,-585.36917948,0.00038356,8]
[394798104,1763961045700,-185.492056,0.00038356,31]
[394798105,1763961045710,-500.0,0.00038356,8]
[394798106,1763961045720,-2560.55,0.00038356,8]
[394798107,1763961045730,-516.07016131,0.00038356,8]
[394798108,1763961045739,-589.93897879,0.00038356,8]
[394798109,1763961045748,-151.0,0.00038356,31]
[394798110,1763961045757,-339.447689,0.00038356,31]
[394798111,1763961045767,-339.447689,0.00038356,31]
[394798112,1763961045776,-151.0,0.00038356,31]
[394798113,1763961045786,-500.0,0.00038356,8]
[394798114,1763961045796,-500.0,0.00038356,8]
[394798115,1763961045806,-339.447689,0.00038356,31]
[394798116,1763961045816,-339.447689,0.00038356,31]
[394798118,1763961045826,-339.447689,0.00038356,31]
[394798120,1763961045836,-500.0,0.00038356,8]
[394798121,1763961045845,-339.447689,0.00038356,31]
[394798122,1763961045855,-339.447689,0.00038356,31]
[394798123,1763961045864,-339.447689,0.00038356,31]
[394798124,1763961045874,-500.0,0.00038356,8]
[394798127,1763961045884,-500.0,0.00038356,8]
[394798129,1763961045895,-151.0,0.00038356,31]
[394798131,1763961045905,-151.0,0.00038356,31]
[394798133,1763961045915,-624.47024942,0.00038356,8]
[394798135,1763961045924,-500.0,0.00038356,8]
[394798137,1763961045935,-500.0,0.00038356,8]
[394798138,1763961045944,-500.0,0.00038356,8]
[394798139,1763961045954,-500.0,0.00038356,8]
[394798140,1763961045963,-290.12510166,0.00038356,8]
[394798141,1763961045973,-500.0,0.00038356,8]
[394798142,1763961045982,-500.0,0.00038356,8]
[394798143,1763961045992,-569.93718475,0.00038356,8]
[394798144,1763961046001,-500.0,0.00038356,8]
[394798145,1763961046011,-500.0,0.00038356,8]
[394798146,1763961046020,-7372.02,0.00038356,120]
[394798147,1763961046030,-500.0,0.00038356,8]
[394798148,1763961046039,-380.43405604,0.00038356,8]
[394798149,1763961046049,-500.0,0.00038356,8]
[394798150,1763961046059,-567.08257656,0.00038356,8]
[394798151,1763961046068,-539.72126625,0.00038356,8]
[394798152,1763961046078,-500.0,0.00038356,8]
[394798153,1763961046088,-500.0,0.00038356,8]
[394798154,1763961046097,-500.0,0.00038356,8]
[394798155,1763961046106,-151.0,0.00038356,31]
[394798156,1763961046117,-151.0,0.00038356,31]
[394798157,1763961046126,-500.0,0.00038356,8]
[394798158,1763961046136,-500.0,0.00038356,8]
[394798159,1763961046145,-552.70807661,0.00038356,8]
[394798160,1763961046175,-500.0,0.00038356,8]
[394798161,1763961046185,-502.40793893,0.00038356,8]
[394798162,1763961046194,-500.0,0.00038356,8]
[394798163,1763961046203,-500.0,0.00038356,8]
[394798164,1763961046213,-500.0,0.00038356,8]
[394798165,1763961046223,-500.0,0.00038356,8]
[394798166,1763961046233,-500.0,0.00038356,8]
[394798167,1763961046244,-500.0,0.00038356,8]
[394798168,1763961046255,-299.1870723,0.00038356,8]
[394798169,1763961046264,-502.09141129,0.00038356,8]
[394798170,1763961046274,-579.28123361,0.00038356,8]
[394798171,1763961046283,-151.0,0.00038356,31]
[394798172,1763961046292,-151.0,0.00038356,31]
[394798173,1763961046304,-500.0,0.00038356,8]
[394798174,1763961046313,-151.0,0.00038356,31]
[394798175,1763961046322,-151.0,0.00038356,31]
[394798176,1763961046331,-151.0,0.00038356,31]
[394798177,1763961046341,-151.0,0.00038356,31]
[394798178,1763961046351,-151.0,0.00038356,31]
[394798179,1763961046360,-151.0,0.00038356,31]
[394798180,1763961046370,-151.0,0.00038356,31]
[394798181,1763961046379,-506.36327147,0.00038356,8]
[394798182,1763961046389,-151.0,0.00038356,31]
[394798183,1763961046398,-500.0,0.00038356,8]
[394798184,1763961046407,-551.78924854,0.00038356,8]
[394798185,1763961046416,-151.0,0.00038356,31]
[394798186,1763961046426,-151.0,0.00038356,31]
[394798187,1763961046435,-151.0,0.00038356,31]
[394798188,1763961046445,-151.0,0.00038356,31]
[394798189,1763961046454,-151.0,0.00038356,31]
[394798190,1763961046464,-151.0,0.00038356,31]
[394798191,1763961046473,-151.0,0.00038356,31]
[394798192,1763961046482,-151.0,0.00038356,31]
[394798193,1763961046491,-151.0,0.00038356,31]
[394798194,1763961046500,-151.0,0.00038356,30]
[394798195,1763961046510,-151.0,0.00038356,31]
[394798196,1763961046520,-151.0,0.00038356,30]
[394798197,1763961046529,-151.0,0.00038356,31]
[394798198,1763961046539,-529.30461804,0.00038356,8]
[394798199,1763961046549,-500.0,0.00038356,8]
[394798200,1763961046558,-151.0,0.00038356,31]
[394798201,1763961046571,-500.0,0.00038356,8]
[394798202,1763961046580,-151.0,0.00038356,31]
[394798203,1763961046589,-500.0,0.00038356,8]
[394798204,1763961046598,-151.0,0.00038356,31]
[394798205,1763961046608,-167.11569033,0.00038356,2]
[394798206,1763961046618,-151.0,0.00038356,120]
[394798207,1763961046627,-151.0,0.00038356,120]
[394798208,1763961046636,-151.0,0.00038356,120]
[394798209,1763961046645,-151.0,0.00038356,120]
[394798210,1763961046658,-500.0,0.00038373,5]
[394798211,1763961046668,-173.22970209,0.00038373,5]
[394798212,1763961046677,-501.54182264,0.00038373,5]
[394798213,1763961046686,-500.54033424,0.00038373,5]
[394798214,1763961046695,-500.20054956,0.00038373,5]
[394798215,1763961046705,-505.95880114,0.00038373,5]
[394798216,1763961046714,-500.0,0.00038373,5]
[394798217,1763961046723,-500.9891276,0.00038373,5]
[394798218,1763961046732,-500.0,0.00038373,5]
[394798219,1763961046741,-417.61433429,0.00038373,2]
[394798220,1763961046751,-414.56319387,0.00038373,5]
[394798221,1763961046760,-500.0,0.00038373,2]
[394798222,1763961046769,-500.0,0.00038373,5]
[394798223,1763961046779,-500.0,0.00038373,5]
[394798224,1763961046788,-331.58146339,0.00038373,5]
[394798225,1763961046797,-190.74008615,0.00038373,5]
[394798226,1763961046806,-500.0,0.00038373,5]
[394798227,1763961046816,-500.0,0.00038373,5]
[394798228,1763961046825,-500.0,0.00038373,5]
[394798229,1763961046835,-195.578902,0.00038373,120]
[394798230,1763961046844,-195.578902,0.00038373,120]
[394798231,1763961046854,-195.578902,0.00038373,120]
[394798233,1763961046863,-195.578902,0.00038373,120]
[394798234,1763961046873,-151.0,0.00038373,120]
[394798235,1763961046882,-151.0,0.00038373,120]
[394798236,1763961046891,-1000.0,0.00038383,120]
[394798237,1763961046900,-151.0,0.00038384,120]
[394798238,1763961046909,-151.0,0.00038384,120]
[394798239,1763961046919,-151.0,0.00038384,120]
[394798240,1763961046928,-151.0,0.00038384,120]
[394798241,1763961046937,-151.0,0.00038384,120]
[394798242,1763961046947,-152.038971,0.00038384,120]
[394798243,1763961046957,-151.0,0.00038384,120]
[394798244,1763961046966,-151.0,0.00038384,120]
[394798245,1763961046975,-339.447689,0.00038384,120]
[394798246,1763961046985,-339.447689,0.00038384,120]
[394798247,1763961046994,-339.447689,0.00038384,120]
[394798248,1763961047003,-339.447689,0.00038384,120]
[394798249,1763961047013,-7372.02,0.00038384,120]
[394798250,1763961047023,-151.0,0.00038384,120]
[394798251,1763961047032,-151.0,0.00038384,120]
[394798252,1763961047042,-151.0,0.00038384,120]
[394798253,1763961047052,-151.0,0.00038384,120]
[394798254,1763961047062,-151.0,0.00038384,120]
[394798255,1763961047071,-151.0,0.00038384,120]
[394798256,1763961047080,-151.0,0.00038384,120]
[394798257,1763961047090,-151.0,0.00038384,120]
[394798258,1763961047099,-151.0,0.00038384,120]
[394798259,1763961047108,-151.0,0.00038384,120]
[394798260,1763961047117,-151.0,0.00038384,30]
[394798261,1763961047126,-151.0,0.00038384,120]
[394798262,1763961047136,-151.0,0.00038384,120]
[394798263,1763961047145,-243.980064,0.00038384,120]
[394798264,1763961047154,-167.65990661,0.00038393,7]
[394798265,1763961047163,-1000.0,0.0003841,120]
[394798266,1763961047172,-167.21140473,0.0003841,120]
[394798267,1763961047182,-327.307542,0.00038413,120]
[394798268,1763961047191,-327.307542,0.00038413,120]
[394798269,1763961047199,-327.307542,0.00038413,120]
[394798270,1763961047208,-327.307542,0.00038413,120]
[394798271,1763961047218,-151.0,0.00038413,120]
[394798272,1763961047227,-249.300723,0.00038413,120]
[394798273,1763961047242,-151.0,0.00038413,120]
[394798274,1763961047257,-151.0,0.00038413,120]
[394798275,1763961047266,-151.0,0.00038413,120]
[394798276,1763961047275,-7372.02,0.00038413,120]
[394798277,1763961047284,-203.15070878,0.00038438,2]
[394798278,1763961047294,-1000.0,0.00038438,120]
[394798279,1763961047304,-7372.02,0.00038443,120]
[394798280,1763961047314,-168.0,0.00038459,2]
[394798281,1763961047324,-150.0,0.00038464,15]
[394798282,1763961047333,-1000.0,0.00038465,120]
[394798283,1763961047343,-7372.02,0.00038476,120]
[394798284,1763961047351,-1000.0,0.00038493,120]
[394798285,1763961047360,-151.0,0.000385,14]
[394798286,1763961047369,-198.323334,0.0003851,120]
[394798287,1763961047378,-198.323334,0.0003851,120]
[394798288,1763961047387,-198.323334,0.0003851,120]
[394798289,1763961047396,-198.323334,0.0003851,120]
[394798290,1763961047406,-7372.02,0.0003851,120]
[394798291,1763961047415,-1000.0,0.0003852,120]
[394798292,1763961047425,-749.73899812,0.0003853,120]
[394798293,1763961047434,-200.0,0.0003853,5]
[394798294,1763961047444,-7372.02,0.00038546,120]
[394798295,1763961047454,-1000.0,0.00038547,120]
[394798296,1763961047463,-1546.47720071,0.00038549,2]
[394798297,1763961047472,-7329.87826965,0.0003855,2]
[394798298,1763961047481,-152.42,0.00038557,2]
[394798299,1763961047532,-1801.72429061,0.0003857,2]
[394798300,1763961047542,-577.4726601,0.0003857,2]
[394798301,1763961047555,-183.858389,0.0003857,120]
[394798302,1763961047565,-500.0,0.0003857,2]
[394798303,1763961047578,-1000.0,0.0003857,2]
[394798304,1763961047587,-600.0,0.00038575,30]
[394798305,1763961047596,-1000.0,0.00038575,120]
[394798306,1763961047605,-200.0,0.00038575,3]
[394798307,1763961047615,-151.0,0.00038584,120]
[394798308,1763961047625,-151.0,0.00038584,120]
[394798309,1763961047634,-151.0,0.00038584,120]
[394798310,1763961047653,-151.0,0.00038584,120]
[394798311,1763961047663,-7372.02,0.00038584,120]
[394798312,1763961047672,-4006.0,0.000386,5]
[394798313,1763961047681,-2222.900642,0.000386,36]
[394798314,1763961047690,-549.079311,0.000386,36]
[394798315,1763961047699,-150.0,0.00038601,15]
[394798316,1763961047709,-180.610254,0.00038602,120]
[394798317,1763961047719,-345.462357,0.00038602,120]
[394798318,1763961047729,-345.462357,0.00038602,120]
[394798319,1763961047738,-345.462357,0.00038602,120]
[394798320,1763961047747,-345.462357,0.00038602,120]
[394798321,1763961047757,-151.0,0.00038602,90]
[394798322,1763961047766,-1000.0,0.00038602,120]
[394798323,1763961047776,-500.0,0.00038602,120]
[394798324,1763961047786,-316.83204115,0.00038602,15]
[394798325,1763961047796,-7372.02,0.00038626,120]
[394798326,1763961047806,-1081.37,0.00038629,30]
[394798327,1763961047815,-158.5645803,0.00038629,15]
[394798328,1763961047825,-500.0,0.00038629,15]
[394798329,1763961047834,-198.05403023,0.00038629,15]
[394798330,1763961047843,-236.76913557,0.00038629,15]
[394798331,1763961047853,-500.0,0.0003863,8]
[394798332,1763961047862,-500.0,0.0003863,8]
[394798333,1763961047871,-500.0,0.0003863,8]
[394798334,1763961047880,-500.0,0.0003863,8]
[394798335,1763961047890,-567.70239974,0.0003863,8]
[394798336,1763961047900,-506.56511935,0.0003863,8]
[394798337,1763961047910,-500.0,0.0003863,8]
[394798338,1763961047919,-500.0,0.0003863,8]
[394798339,1763961047928,-518.75581972,0.0003863,8]
[394798340,1763961047938,-521.06635622,0.0003863,8]
[394798341,1763961047948,-517.63765906,0.0003863,8]
[394798342,1763961047957,-500.0,0.0003863,8]
[394798343,1763961047967,-500.0,0.0003863,8]
[394798344,1763961047976,-336.49893579,0.0003863,8]
[394798345,1763961047986,-507.03314613,0.0003863,8]
[394798346,1763961047996,-503.41834094,0.0003863,8]
[394798347,1763961048005,-503.97683212,0.0003863,8]
[394798348,1763961048015,-500.0,0.0003863,8]
[394798349,1763961048024,-500.0,0.0003863,8]
[394798350,1763961048033,-500.0,0.0003863,8]
[394798351,1763961048043,-500.0,0.0003863,8]
[394798352,1763961048053,-500.0,0.0003863,8]
[394798353,1763961048063,-897.72,0.0003863,8]
[394798354,1763961048072,-520.52000963,0.0003863,8]
[394798355,1763961048082,-700.0,0.0003863,120]
[394798356,1763961048091,-500.0,0.0003863,8]
[394798357,1763961048101,-500.0,0.0003863,8]
[394798358,1763961048111,-506.62540424,0.0003863,8]
[394798359,1763961048121,-500.0,0.0003863,8]
[394798360,1763961048130,-569.31204429,0.0003863,8]
[394798361,1763961048140,-535.07241834,0.0003863,8]
[394798362,1763961048149,-503.44734627,0.0003863,8]
[394798363,1763961048159,-603.85641879,0.0003863,8]
[394798364,1763961048169,-500.0,0.0003863,8]
[394798365,1763961048178,-521.00634979,0.0003863,8]
[394798366,1763961048188,-500.0,0.0003863,8]
[394798367,1763961048198,-495.99856827,0.0003863,8]
[394798368,1763961048208,-500.0,0.0003863,8]
[394798369,1763961048216,-509.62822341,0.0003863,8]
[394798370,1763961048226,-500.0,0.0003863,8]
[394798371,1763961048235,-505.66360664,0.0003863,8]
[394798372,1763961048245,-500.0,0.0003863,8]
[394798373,1763961048254,-524.08892537,0.0003863,8]
[394798374,1763961048263,-382.07280564,0.0003863,8]
[394798375,1763961048273,-500.0,0.0003863,8]
[394798376,1763961048282,-500.0,0.0003863,8]
[394798377,1763961048291,-500.0,0.0003863,8]
[394798378,1763961048301,-500.0,0.0003863,8]
[394798379,1763961048310,-500.0,0.0003863,8]
[394798380,1763961048319,-500.0,0.0003863,8]
[394798381,1763961048328,-500.0,0.0003863,8]
[394798382,1763961048338,-500.0,0.0003863,8]
[394798383,1763961048347,-220.34943847,0.0003863,8]
[394798384,1763961048356,-500.0,0.0003863,8]
[394798385,1763961048365,-506.86757343,0.0003863,8]
[394798386,1763961048375,-502.05506303,0.0003863,8]
[394798387,1763961048384,-503.20355607,0.0003863,8]
[394798388,1763961048394,-542.34872209,0.0003863,8]
[394798389,1763961048405,-509.27131076,0.0003863,8]
[394798390,1763961048414,-503.48087756,0.0003863,8]
[394798391,1763961048424,-496.40646906,0.0003863,8]
[394798392,1763961048433,-500.0,0.0003863,8]
[394798393,1763961048442,-500.0,0.0003863,8]
[394798394,1763961048452,-504.41589576,0.0003863,8]
[394798395,1763961048460,-500.0,0.0003863,8]
[394798396,1763961048470,-509.38841321,0.0003863,8]
[394798397,1763961048478,-500.0,0.0003863,8]
[394798398,1763961048487,-500.0,0.0003863,8]
[394798399,1763961048496,-500.0,0.0003863,8]
[394798400,1763961048506,-500.0,0.0003863,8]
[394798401,1763961048515,-164.62616001,0.0003863,8]
[394798402,1763961048524,-507.32466653,0.0003863,8]
[394798403,1763961048534,-497.63924147,0.0003863,8]
[394798404,1763961048543,-500.0,0.0003863,8]
[394798405,1763961048555,-502.91881483,0.0003863,8]
[394798406,1763961048565,-508.54170318,0.0003863,8]
[394798407,1763961048578,-269.30980586,0.0003863,8]
[394798408,1763961048587,-300.0,0.0003863,2]
[394798409,1763961048596,-500.0,0.0003863,8]
[394798410,1763961048606,-505.21522898,0.0003863,8]
[394798411,1763961048617,-500.0,0.0003863,8]
[394798412,1763961048626,-500.0,0.0003863,8]
[394798413,1763961048636,-500.0,0.0003863,8]
[394798414,1763961048646,-500.0,0.0003863,8]
[394798415,1763961048657,-507.07300767,0.0003863,8]
[394798416,1763961048666,-500.0,0.0003863,8]
[394798417,1763961048675,-571.18,0.0003863,8]
[394798418,1763961048685,-530.72301935,0.0003863,8]
[394798419,1763961048695,-500.0,0.0003863,8]
[394798420,1763961048704,-512.54260792,0.0003863,8]
[394798421,1763961048713,-617.9195348,0.0003863,8]
[394798422,1763961048722,-500.0,0.0003863,8]
[394798423,1763961048731,-500.0,0.0003863,8]
[394798424,1763961048740,-500.0,0.0003863,8]
[394798425,1763961048750,-195.578902,0.0003863,120]
[394798426,1763961048759,-161.65545179,0.0003863,8]
[394798427,1763961048768,-195.578902,0.0003863,120]
[394798428,1763961048778,-500.0,0.0003863,8]
[394798429,1763961048788,-195.578902,0.0003863,120]
[394798430,1763961048797,-195.578902,0.0003863,120]
[394798431,1763961048807,-500.0,0.0003863,8]
[394798432,1763961048817,-500.0,0.0003863,8]
[394798433,1763961048827,-500.0,0.0003863,8]
[394798434,1763961048836,-500.0,0.0003863,8]
[394798435,1763961048846,-500.0,0.0003863,8]
[394798436,1763961048856,-151.0,0.0003863,120]
[394798437,1763961048865,-151.0,0.0003863,120]
[394798438,1763961048875,-500.0,0.0003863,8]
[394798439,1763961048885,-500.0,0.0003863,8]
[394798440,1763961048895,-542.95833541,0.0003863,8]
[394798441,1763961048905,-500.0,0.0003863,8]
[394798442,1763961048914,-500.0,0.0003863,8]
[394798443,1763961048924,-500.0,0.0003863,8]
[394798444,1763961048933,-500.0,0.0003863,8]
[394798445,1763961048943,-500.0,0.0003863,8]
[394798446,1763961048952,-500.0,0.0003863,8]
[394798447,1763961048962,-345.462357,0.0003863,120]
[394798448,1763961048971,-345.462357,0.0003863,120]
[394798449,1763961048980,-345.462357,0.0003863,120]
[394798450,1763961048989,-345.462353,0.0003863,120]
[394798451,1763961048999,-151.0,0.0003863,90]
[394798452,1763961049008,-509.12716647,0.0003863,8]
[394798453,1763961049018,-500.0,0.0003863,8]
[394798454,1763961049027,-151.0,0.0003863,120]
[394798455,1763961049037,-803.08,0.0003863,8]
[394798456,1763961049046,-151.0,0.0003863,120]
[394798457,1763961049056,-500.0,0.0003863,8]
[394798458,1763961049065,-500.0,0.0003863,8]
[394798459,1763961049075,-500.0,0.0003863,8]
[394798460,1763961049084,-500.0,0.0003863,8]
[394798461,1763961049093,-500.0,0.0003863,8]
[394798462,1763961049103,-500.0,0.0003863,8]
[394798463,1763961049119,-175.94714577,0.0003863,8]
[394798464,1763961049127,-503.72640452,0.0003863,8]
[394798465,1763961049136,-151.0,0.0003863,120]
[394798466,1763961049145,-151.0,0.0003863,120]
[394798467,1763961049155,-500.0,0.0003863,8]
[394798468,1763961049163,-500.0,0.0003863,8]
[394798469,1763961049173,-500.0,0.0003863,8]
[394798470,1763961049182,-507.96465957,0.0003863,8]
[394798471,1763961049192,-506.37307044,0.0003863,8]
[394798472,1763961049202,-465.5901912,0.0003863,8]
[394798473,1763961049211,-500.0,0.0003863,8]
[394798474,1763961049220,-500.0,0.0003863,8]
[394798475,1763961049229,-500.0,0.0003863,8]
[394798476,1763961049239,-506.55202958,0.0003863,8]
[394798477,1763961049249,-507.65565827,0.0003863,8]
[394798478,1763961049258,-509.59056218,0.0003863,8]
[394798479,1763961049267,-649.90526562,0.0003863,8]
[394798480,1763961049277,-502.69350681,0.0003863,8]
[394798481,1763961049287,-500.0,0.0003863,8]
[394798482,1763961049296,-500.0,0.0003863,8]
[394798483,1763961049307,-503.8746425,0.0003863,8]
[394798484,1763961049316,-345.66740592,0.0003863,8]
[394798485,1763961049326,-500.0,0.0003863,8]
[394798486,1763961049336,-508.52903752,0.0003863,8]
[394798487,1763961049348,-187.84924025,0.0003863,8]
[394798488,1763961049357,-504.21141354,0.0003863,8]
[394798489,1763961049368,-500.0,0.0003863,8]
[394798490,1763961049378,-545.7157359,0.0003863,90]
[394798491,1763961049388,-500.0,0.0003863,8]
[394798492,1763961049398,-500.0,0.0003863,8]
[394798493,1763961049408,-198.323334,0.0003863,120]
[394798494,1763961049418,-605.08176715,0.0003863,8]
[394798495,1763961049428,-198.323334,0.0003863,120]
[394798496,1763961049437,-198.323334,0.0003863,120]
[394798497,1763961049447,-500.0,0.0003863,8]
[394798498,1763961049457,-198.32333,0.0003863,120]
[394798499,1763961049467,-500.0,0.0003863,8]
[394798500,1763961049477,-500.0,0.0003863,8]
[394798501,1763961049486,-505.28203923,0.0003863,8]
[394798502,1763961049496,-500.0,0.0003863,8]
[394798503,1763961049505,-500.0,0.0003863,8]
[394798504,1763961049515,-586.6705173,0.0003863,8]
[394798505,1763961049525,-500.0,0.0003863,8]
[394798506,1763961049535,-1000.0,0.0003863,8]
[394798507,1763961049545,-163.94705251,0.0003863,8]
[394798508,1763961049556,-500.0,0.0003863,8]
[394798509,1763961049567,-500.0,0.0003863,8]
[394798510,1763961049578,-500.0,0.0003863,8]
[394798511,1763961049587,-528.53248384,0.0003863,8]
[394798512,1763961049599,-547.46070191,0.0003863,8]
[394798513,1763961049609,-536.46761972,0.0003863,8]
[394798514,1763961049618,-597.40522392,0.0003863,8]
[394798515,1763961049628,-534.99155595,0.0003863,8]
[394798516,1763961049638,-500.0,0.0003863,8]
[394798517,1763961049648,-500.0,0.0003863,8]
[394798518,1763961049659,-327.307542,0.0003863,120]
[394798519,1763961049669,-327.307542,0.0003863,120]
[394798520,1763961049679,-500.0,0.0003863,8]
[394798521,1763961049689,-327.307542,0.0003863,120]
[394798522,1763961049699,-327.307534,0.0003863,120]
[394798523,1763961049709,-151.0,0.0003863,120]
[394798524,1763961049718,-500.0,0.0003863,8]
[394798525,1763961049728,-500.0,0.0003863,8]
[394798526,1763961049738,-356.79171019,0.0003863,2]
[394798527,1763961049747,-243.18925999,0.0003863,8]
[394798528,1763961049756,-343.27134992,0.0003863,8]
[394798529,1763961049766,-530.41664579,0.0003863,8]
[394798530,1763961049775,-500.0,0.0003863,8]
[394798531,1763961049785,-500.0,0.0003863,8]
[394798532,1763961049795,-500.0,0.0003863,8]
[394798533,1763961049804,-151.0,0.0003863,120]
[394798534,1763961049814,-390.45035666,0.0003863,8]
[394798535,1763961049823,-151.0,0.0003863,120]
[394798536,1763961049832,-151.0,0.0003863,120]
[394798537,1763961049842,-500.0,0.0003863,8]
[394798538,1763961049851,-151.0,0.0003863,120]
[394798539,1763961049861,-312.93706824,0.0003863,8]
[394798540,1763961049871,-151.0,0.0003863,120]
[394798541,1763961049882,-151.0,0.0003863,120]
[394798542,1763961049892,-151.0,0.0003863,120]
[394798543,1763961049902,-500.0,0.0003863,8]
[394798544,1763961049912,-500.0,0.0003863,8]
[394798545,1763961049922,-500.0,0.0003863,8]
[394798546,1763961049932,-1721.82,0.0003863,8]
[394798547,1763961049943,-500.0,0.0003863,8]
[394798548,1763961049953,-500.0,0.0003863,8]
[394798549,1763961049964,-500.0,0.0003863,8]
[394798550,1763961049974,-526.17488057,0.0003863,8]
[394798551,1763961049983,-500.0,0.0003863,8]
[394798552,1763961049993,-2074.67,0.0003863,8]
[394798553,1763961050003,-500.0,0.0003863,8]
[394798554,1763961050013,-500.0,0.0003863,8]
[394798555,1763961050022,-500.0,0.0003863,8]
[394798556,1763961050032,-570.31029809,0.0003863,8]
[394798557,1763961050042,-500.0,0.0003863,8]
[394798558,1763961050051,-151.0,0.0003863,120]
[394798559,1763961050061,-500.0,0.0003863,8]
[394798560,1763961050071,-500.0,0.0003863,8]
[394798561,1763961050081,-500.0,0.0003863,8]
[394798562,1763961050090,-500.0,0.0003863,8]
[394798563,1763961050100,-500.0,0.0003863,8]
[394798564,1763961050110,-973.33,0.0003863,8]
[394798565,1763961050119,-500.0,0.0003863,8]
[394798566,1763961050129,-151.0,0.0003863,120]
[394798567,1763961050139,-151.0,0.0003863,120]
[394798568,1763961050149,-500.0,0.0003863,8]
[394798569,1763961050158,-2560.55,0.0003863,8]
[394798570,1763961050168,-339.447689,0.0003863,120]
[394798571,1763961050178,-500.0,0.0003863,8]
[394798572,1763961050187,-339.447689,0.0003863,120]
[394798573,1763961050197,-500.0,0.0003863,8]
[394798574,1763961050206,-339.447689,0.0003863,120]
[394798575,1763961050215,-218.84574951,0.0003863,8]
[394798576,1763961050224,-339.447689,0.0003863,120]
[394798577,1763961050234,-500.0,0.0003863,8]
[394798578,1763961050243,-540.1784483,0.0003863,8]
[394798579,1763961050253,-500.0,0.0003863,8]
[394798580,1763961050262,-500.0,0.0003863,8]
[394798581,1763961050272,-151.26781826,0.0003863,8]
[394798582,1763961050282,-500.0,0.0003863,8]
[394798583,1763961050291,-500.0,0.0003863,8]
[394798584,1763961050301,-500.0,0.0003863,8]
[394798585,1763961050310,-500.0,0.0003863,8]
[394798586,1763961050320,-151.0,0.0003863,120]
[394798587,1763961050329,-500.0,0.0003863,8]
[394798588,1763961050339,-500.0,0.0003863,8]
[394798589,1763961050348,-500.0,0.0003863,8]
[394798590,1763961050358,-500.0,0.0003863,8]
[394798591,1763961050368,-199.27038878,0.0003863,8]
[394798592,1763961050378,-569.55605937,0.0003863,8]
[394798593,1763961050387,-500.0,0.0003863,8]
[394798594,1763961050396,-151.0,0.0003863,120]
[394798595,1763961050406,-151.0,0.0003863,120]
[394798596,1763961050415,-151.0,0.0003863,120]
[394798597,1763961050426,-151.0,0.0003863,120]
[394798598,1763961050436,-500.0,0.0003863,8]
[394798599,1763961050446,-151.0,0.0003863,120]
[394798600,1763961050456,-151.0,0.0003863,120]